bitfinex-derivatives/quotes_BTCF0:USTF0_20250508
["timestamp","ask_amount","ask_price","bid_price","bid_amount"]
[1746748351505,0.5666,103150.0,103140.0,1.57271305]
[1746748353803,0.5666,103150.0,103140.0,1.40907305]
[1746748353999,0.5666,103150.0,103140.0,1.57271305]
[1746748357509,0.5666,103150.0,103140.0,1.68099996]
[1746748358412,0.5666,103150.0,103140.0,1.57271305]
[1746748359003,0.5666,103150.0,103140.0,1.68099996]
[1746748359499,0.5666,103150.0,103140.0,1.57271305]
[1746748359703,0.5666,103150.0,103140.0,1.72006686]
[1746748360311,0.5666,103150.0,103140.0,1.65276686]
[1746748360510,0.56902,103150.0,103140.0,1.65276686]
[1746748361714,0.56902,103150.0,103140.0,1.68662239]
[1746748365515,0.56902,103150.0,103140.0,1.38083995]
[1746748365716,0.66082,103150.0,103140.0,1.04073117]
[1746748365920,0.66082,103150.0,103140.0,1.18213117]
[1746748366214,0.66082,103150.0,103140.0,1.10041117]
[1746748366415,0.66082,103150.0,103140.0,1.18213117]
[1746748367415,0.66082,103150.0,103140.0,1.17813117]
[1746748367716,0.66082,103150.0,103140.0,1.17913117]
[1746748369039,0.66082,103150.0,103140.0,1.18213117]
[1746748369318,0.66082,103150.0,103140.0,1.18413117]
[1746748369919,0.66082,103150.0,103140.0,1.18113117]
[1746748370719,0.66082,103150.0,103140.0,1.10903117]
[1746748372022,0.66082,103150.0,103140.0,1.10703117]
[1746748372214,0.66082,103150.0,103140.0,1.11003117]
[1746748372415,0.66082,103150.0,103140.0,0.96267736]
[1746748373410,0.66082,103150.0,103140.0,0.95305736]
[1746748373610,0.66082,103150.0,103140.0,1.18756858]
[1746748374623,0.6584,103150.0,103140.0,1.18756858]
[1746748377929,0.66082,103150.0,103140.0,1.18756858]
[1746748379526,0.66082,103150.0,103140.0,1.11649736]
[1746748379715,0.66082,103150.0,103140.0,1.18756858]
[1746748381522,0.73362,103150.0,103140.0,1.18756858]
[1746748383233,0.73362,103150.0,103140.0,1.04542614]
[1746748383531,0.73362,103150.0,103140.0,0.93305736]
[1746748383720,0.73362,103150.0,103140.0,1.02469736]
[1746748383922,0.73362,103150.0,103140.0,0.94305736]
[1746748384124,0.73362,103150.0,103140.0,1.02469736]
[1746748385031,0.73362,103150.0,103140.0,1.03435736]
[1746748385833,0.73362,103150.0,103140.0,1.10955736]
[1746748387228,0.927522,103150.0,103140.0,0.64660614]
[1746748387528,0.917522,103150.0,103140.0,0.58374614]
[1746748387734,0.917522,103150.0,103140.0,0.82481736]
[1746748388128,0.917522,103150.0,103140.0,0.65481736]
[1746748388636,0.917522,103150.0,103140.0,0.65381736]
[1746748388838,0.918522,103150.0,103140.0,0.65281736]
[1746748390434,0.72462,103150.0,103140.0,0.65281736]
[1746748391431,0.72462,103150.0,103140.0,0.65277736]
[1746748391630,0.72462,103150.0,103140.0,0.57117736]
[1746748391836,0.72462,103150.0,103140.0,0.65277736]
[1746748392054,0.72462,103150.0,103140.0,0.82277736]
[1746748392233,0.72462,103150.0,103140.0,0.97007736]
[1746748396636,0.918522,103150.0,103140.0,0.97007736]
[1746748397041,0.72462,103150.0,103140.0,0.97007736]
[1746748400643,0.72462,103150.0,103140.0,0.88847736]
[1746748400851,0.72462,103150.0,103140.0,0.98487503]
[1746748403346,0.72462,103150.0,103140.0,1.05807503]
[1746748404048,0.72462,103150.0,103140.0,0.98487503]
[1746748405848,1.08542,103150.0,103140.0,0.98487503]
[1746748406437,1.08542,103150.0,103140.0,0.91380381]
[1746748406636,1.08542,103150.0,103140.0,0.98487503]
[1746748409545,1.08542,103150.0,103140.0,0.98504552]
[1746748410060,1.08542,103150.0,103140.0,0.81504552]
[1746748410752,1.08542,103150.0,103140.0,0.98504552]
[1746748411353,1.08542,103150.0,103140.0,0.97020785]
[1746748412455,1.08542,103150.0,103140.0,0.98498227]
[1746748412855,0.36382,103150.0,103140.0,0.98498227]
[1746748413055,1.08542,103150.0,103140.0,0.98498227]
[1746748413546,1.07814606,103150.0,103140.0,0.98498227]
[1746748414156,0.35654606,103150.0,103140.0,0.97020785]
[1746748414355,1.07814606,103150.0,103140.0,0.97020785]
[1746748417165,0.21194606,103150.0,103140.0,1.39127907]
[1746748417373,0.57274606,103150.0,103140.0,1.47963294]
[1746748417577,0.64059682,103150.0,103140.0,1.47963294]
[1746748417871,0.64059682,103150.0,103140.0,1.47963308]
[1746748418765,0.64059682,103150.0,103140.0,1.40856186]
[1746748418965,0.71409682,103150.0,103140.0,1.40856186]
[1746748419865,0.83449882,103150.0,103140.0,0.89901064]
[1746748420063,0.71409682,103150.0,103140.0,1.01581064]
[1746748420265,0.90799882,103150.0,103140.0,0.49308464]
[1746748420461,0.90799882,103150.0,103140.0,0.57456464]
[1746748421075,0.71409682,103150.0,103140.0,0.49308581]
[1746748421371,0.71409682,103150.0,103140.0,0.57456581]
[1746748421973,0.90799882,103150.0,103140.0,0.57456581]
[1746748423976,0.71409682,103150.0,103140.0,0.49308581]
[1746748424181,0.71409682,103150.0,103140.0,0.64452581]
[1746748424478,0.71409682,103150.0,103140.0,0.83452581]
[1746748424975,0.71409682,103150.0,103140.0,0.64452581]
[1746748425174,0.71409682,103150.0,103140.0,0.80452581]
[1746748425471,0.71409682,103150.0,103140.0,0.81161695]
[1746748425675,0.90799882,103150.0,103140.0,0.84161718]
[1746748425875,0.90799882,103150.0,103140.0,0.9126884]
[1746748426175,0.71409682,103150.0,103140.0,0.9126884]
[1746748426480,0.90799882,103150.0,103140.0,0.9126884]
[1746748426775,0.90799882,103150.0,103140.0,0.84161718]
[1746748427075,0.90799882,103150.0,103140.0,0.9126884]
[1746748427373,0.96907004,103150.0,103140.0,0.2034846]
[1746748427574,0.98907004,103150.0,103140.0,0.2034846]
[1746748427764,1.46853327,103150.0,103140.0,0.08649526]
[1746748428073,1.39746205,103150.0,103140.0,0.08649526]
[1746748428375,1.39746205,103150.0,103140.0,0.02441704]
[1746748428570,1.39746205,103150.0,103140.0,0.02444593]
[1746748428777,1.14746205,103150.0,103140.0,0.02444597]
[1746748428981,1.14746205,103150.0,103140.0,0.21836677]
[1746748429469,1.14746205,103150.0,103140.0,0.21124647]
[1746748430676,1.15703697,103150.0,103140.0,0.2182969]
[1746748431271,1.15703697,103150.0,103140.0,0.21124647]
[1746748431478,1.25577232,103150.0,103140.0,0.21124647]
[1746748433483,1.25577232,103150.0,103140.0,0.2180798]
[1746748433777,1.25577232,103150.0,103140.0,0.21807833]
[1746748433974,1.25577232,103150.0,103140.0,0.02415753]
[1746748434169,1.25577232,103150.0,103140.0,0.01732567]
[1746748434381,1.25577232,103150.0,103140.0,0.0241575]
[1746748434679,1.25577232,103150.0,103140.0,0.2180783]
[1746748434978,1.25577232,103150.0,103140.0,0.0241575]
[1746748435677,1.25577232,103150.0,103140.0,0.01732567]
[1746748435879,1.23100374,103150.0,103140.0,0.01732567]
[1746748436072,1.15993252,103150.0,103140.0,0.01732567]
[1746748436280,1.23100374,103150.0,103140.0,0.01732567]
[1746748437482,1.23100374,103150.0,103140.0,0.00904317]
[1746748438282,1.23100374,103150.0,103140.0,0.00904364]
[1746748438482,1.23100374,103150.0,103140.0,0.00904344]
[1746748439787,1.23100374,103150.0,103140.0,0.00904274]
[1746748440086,1.23100374,103150.0,103140.0,0.17704274]
[1746748441077,1.23100374,103150.0,103140.0,0.00904274]
[1746748441685,1.13405173,103150.0,103140.0,0.00904274]
[1746748441984,1.13405173,103150.0,103140.0,0.20296354]
[1746748442181,1.13405173,103150.0,103140.0,0.37096354]
[1746748443277,1.13405173,103150.0,103140.0,0.17704274]
[1746748444075,1.06008496,103150.0,103140.0,0.17704274]
[1746748444473,0.1939396,103130.0,103120.0,0.00963994]
[1746748444777,0.1939584,103120.0,103110.0,0.36012983]
[1746748444978,0.8378584,103120.0,103110.0,0.57670105]
[1746748445181,0.8378584,103120.0,103110.0,0.75183075]
[1746748445379,0.8378584,103120.0,103110.0,0.68075953]
[1746748445577,0.8378584,103120.0,103110.0,0.75183075]
[1746748446085,0.8378584,103120.0,103110.0,0.16896983]
[1746748446287,0.55477727,103110.0,103100.0,0.10290966]
[1746748446482,0.97525971,103110.0,103100.0,6e-08]
[1746748446689,0.5547961,103100.0,103090.0,7e-08]
[1746748446987,0.88956732,103100.0,103090.0,7e-08]
[1746748447288,0.97100732,103100.0,103090.0,0.20145168]
[1746748447488,0.97100732,103100.0,103090.0,0.33361497]
[1746748448086,0.97100732,103100.0,103090.0,0.50161497]
[1746748448287,0.97100732,103100.0,103090.0,0.5016149]
[1746748448678,0.97100732,103100.0,103090.0,0.5046149]
[1746748449086,0.8999361,103100.0,103090.0,0.5046149]
[1746748449483,0.97342732,103100.0,103090.0,0.5046149]
[1746748449685,0.9023561,103100.0,103090.0,0.5046149]
[1746748449879,0.97342732,103100.0,103090.0,0.5046149]
[1746748451187,0.97342732,103100.0,103090.0,0.51206908]
[1746748451789,0.49322,103100.0,103090.0,0.5831403]
[1746748451982,0.50322,103100.0,103090.0,0.98337152]
[1746748452293,0.50322,103100.0,103090.0,0.9123003]
[1746748452591,0.50322,103100.0,103090.0,0.7323003]
[1746748452791,0.6972161,103100.0,103090.0,0.7323003]
[1746748452994,0.50322,103100.0,103090.0,0.7323003]
[1746748454887,0.6972161,103100.0,103090.0,0.7323003]
[1746748455693,0.6972161,103100.0,103090.0,0.76965012]
[1746748456396,0.6972161,103100.0,103090.0,0.66122908]
[1746748456598,0.6972161,103100.0,103090.0,0.76965012]
[1746748459696,0.50322,103100.0,103090.0,0.76965012]
[1746748462599,0.57432,103100.0,103090.0,0.76965012]
[1746748462797,0.57432,103100.0,103090.0,0.68829012]
[1746748462997,0.57432,103100.0,103090.0,0.76961012]
[1746748464601,0.57432,103100.0,103090.0,0.77651549]
[1746748465501,0.7683161,103100.0,103090.0,0.77651549]
[1746748465689,0.7683161,103100.0,103090.0,0.77646852]
[1746748465889,0.7683161,103100.0,103090.0,0.77646854]
[1746748466695,0.7683161,103100.0,103090.0,0.76961012]
[1746748466895,0.7683161,103100.0,103090.0,0.68829012]
[1746748467395,0.7683161,103100.0,103090.0,0.76957012]
[1746748467589,0.8359161,103100.0,103090.0,0.76957012]
[1746748467793,0.8359161,103100.0,103090.0,0.77641986]
[1746748468101,0.7683161,103100.0,103090.0,0.77641986]
[1746748469794,0.7683161,103100.0,103090.0,0.77646315]
[1746748470303,0.7683161,103100.0,103090.0,0.79162652]
[1746748472205,0.4075161,103100.0,103090.0,0.79162652]
[1746748472397,1.19106387,103100.0,103090.0,0.79162652]
[1746748473808,1.26256387,103100.0,103090.0,0.79168045]
[1746748474509,1.26256387,103100.0,103090.0,0.71040045]
[1746748474710,1.26256387,103100.0,103090.0,0.79164045]
[1746748475118,0.49836777,103100.0,103090.0,0.95164536]
[1746748475309,0.32756677,103120.0,103110.0,0.1939773]
[1746748475607,0.20756677,103120.0,103110.0,0.76688816]
[1746748475914,0.13396677,103120.0,103110.0,1.34490176]
[1746748476212,0.20756677,103120.0,103110.0,1.51290176]
[1746748476909,0.13396677,103120.0,103110.0,1.51290176]
[1746748477308,0.20586677,103120.0,103110.0,1.44278816]
[1746748477508,0.28586677,103120.0,103110.0,0.59198816]
[1746748477807,0.54822517,103120.0,103110.0,0.59098816]
[1746748478011,0.347,103120.0,103110.0,0.59398816]
[1746748478203,0.347,103120.0,103110.0,0.5939786]
[1746748478721,0.347,103120.0,103110.0,0.68485876]
[1746748479219,0.7078,103120.0,103110.0,0.68485876]
[1746748479413,0.7078,103120.0,103110.0,0.67791875]
[1746748479721,0.7078,103120.0,103110.0,0.6848577]
[1746748479915,0.7078,103120.0,103110.0,0.67791875]
[1746748480313,0.7078,103120.0,103110.0,0.6696958]
[1746748480512,0.7078,103120.0,103110.0,0.66969577]
[1746748480720,0.347,103120.0,103110.0,0.66669585]
[1746748481020,0.7078,103120.0,103110.0,0.66969583]
[1746748481217,0.7078,103120.0,103110.0,0.6627573]
[1746748481608,0.7078,103120.0,103110.0,0.66969763]
[1746748481813,0.7078,103120.0,103110.0,0.66969749]
[1746748482214,0.7078,103120.0,103110.0,0.77808837]
[1746748482522,0.7078,103120.0,103110.0,0.77808836]
[1746748482709,0.7078,103120.0,103110.0,0.77808837]
[1746748482910,0.7078,103120.0,103110.0,0.77114764]
[1746748484113,0.7078,103120.0,103110.0,0.6627573]
[1746748484320,0.7078,103120.0,103110.0,0.77114764]
[1746748484619,0.347,103120.0,103110.0,0.6627573]
[1746748485016,0.7078,103120.0,103110.0,0.6627573]
[1746748491123,0.347,103120.0,103110.0,0.6627573]
[1746748491428,0.7078,103120.0,103110.0,0.6627573]
[1746748492330,0.7078,103120.0,103110.0,0.5718773]
[1746748492535,0.7078,103120.0,103110.0,0.6619973]
[1746748493032,0.69415689,103120.0,103110.0,0.67336657]
[1746748493229,0.68930582,103120.0,103110.0,0.6976879]
[1746748493422,0.68202949,103120.0,103110.0,0.6976879]
[1746748494430,0.54592949,103120.0,103110.0,0.6976879]
[1746748494822,0.61442949,103120.0,103110.0,0.6976879]
[1746748496430,0.61442949,103120.0,103110.0,0.6971679]
[1746748496630,0.61442949,103120.0,103110.0,0.6075679]
[1746748496831,0.61442949,103120.0,103110.0,0.6971279]
[1746748497529,0.80838789,103120.0,103110.0,0.60756786]
[1746748497833,0.80838789,103120.0,103110.0,0.6039569]
[1746748498032,0.80838789,103120.0,103110.0,0.62417508]
[1746748499437,0.80838789,103120.0,103110.0,0.62424303]
[1746748499627,0.80838789,103120.0,103110.0,0.62424298]
[1746748499828,0.80838789,103120.0,103110.0,0.62424301]
[1746748501040,0.79247051,103120.0,103110.0,0.62424301]
[1746748501727,0.79247051,103120.0,103110.0,0.53472301]
[1746748501936,0.86361069,103120.0,103110.0,0.46672301]
[1746748502634,1.29555087,103120.0,103110.0,0.20644587]
[1746748502839,1.29555087,103120.0,103110.0,0.2064463]
[1746748503331,1.29555087,103120.0,103110.0,0.0384463]
[1746748503332,1.28555087,103120.0,103110.0,0.0384463]
[1746748504440,1.28555087,103120.0,103110.0,0.2324236]
[1746748507640,1.14327051,103120.0,103110.0,0.2324236]
[1746748508034,1.14327051,103120.0,103110.0,0.3028236]
[1746748508239,1.14327051,103120.0,103110.0,0.6162236]
[1746748508438,1.13841881,103120.0,103110.0,0.6162236]
[1746748508639,1.13841881,103120.0,103110.0,0.61622461]
[1746748508828,0.4491124,103120.0,103110.0,0.68736374]
[1746748509033,0.50333559,103120.0,103110.0,0.68736374]
[1746748509341,0.50333559,103120.0,103110.0,0.88685807]
[1746748509542,0.50333559,103120.0,103110.0,0.686858]
[1746748509737,0.50333559,103120.0,103110.0,0.91409881]
[1746748510038,0.50333559,103120.0,103110.0,0.80571679]
[1746748510542,0.50333559,103120.0,103110.0,0.91409778]
[1746748510940,0.68077111,103120.0,103110.0,0.72409778]
[1746748511128,0.48681271,103120.0,103110.0,0.61583596]
[1746748511939,0.48681271,103120.0,103110.0,0.79583596]
[1746748512133,0.48681271,103120.0,103110.0,0.81583596]
[1746748512640,0.48681271,103120.0,103110.0,0.92421695]
[1746748512841,0.48681271,103120.0,103110.0,0.92421692]
[1746748513038,0.1966608,103130.0,103110.0,1.00889656]
[1746748513039,0.00272,103130.0,103110.0,1.00889656]
[1746748513235,0.13272,103130.0,103120.0,0.53111939]
[1746748513432,0.13272,103130.0,103120.0,0.72083912]
[1746748513628,0.13272,103130.0,103120.0,0.70942613]
[1746748513840,0.13272,103130.0,103120.0,1.19296672]
[1746748514042,0.5818,103150.0,103140.0,0.1939208]
[1746748514229,0.3918,103150.0,103140.0,0.40364053]
[1746748514432,0.3918,103150.0,103140.0,0.53574053]
[1746748514628,0.585702,103150.0,103140.0,0.36491359]
[1746748514833,0.652002,103150.0,103140.0,0.36143956]
[1746748515050,0.720902,103150.0,103140.0,0.36143956]
[1746748515344,0.720902,103150.0,103140.0,0.5304948]
[1746748515534,0.720902,103150.0,103140.0,0.5191279]
[1746748515734,0.720902,103150.0,103140.0,0.53049415]
[1746748516045,0.7325861,103150.0,103140.0,0.53049415]
[1746748516242,0.722902,103150.0,103140.0,0.53049415]
[1746748516544,0.45100709,103150.0,103140.0,0.53049415]
[1746748516746,0.45100709,103150.0,103140.0,0.63887514]
[1746748516943,0.38470709,103150.0,103140.0,0.63887514]
[1746748517242,0.38470709,103150.0,103140.0,1.30420813]
[1746748517740,0.7547644,103170.0,103160.0,0.1938832]
[1746748517942,0.7647644,103170.0,103160.0,0.31332069]
[1746748518245,0.5709,103170.0,103160.0,0.63915447]
[1746748518741,0.5021,103170.0,103160.0,0.74753546]
[1746748518939,0.1413,103170.0,103160.0,0.74753546]
[1746748519147,0.1413,103170.0,103160.0,0.93753546]
[1746748519346,0.3371644,103170.0,103160.0,0.63915447]
[1746748519536,0.2131,103170.0,103160.0,0.63915447]
[1746748519739,0.94784539,103170.0,103160.0,0.54003447]
[1746748519937,0.9096644,103170.0,103160.0,0.64087601]
[1746748520342,0.9096644,103170.0,103160.0,0.64087581]
[1746748520537,0.9096644,103170.0,103160.0,0.64087669]
[1746748520942,0.9096644,103170.0,103160.0,0.63138404]
[1746748521141,0.9096644,103170.0,103160.0,0.64087298]
[1746748521343,0.9096644,103170.0,103160.0,0.64026072]
[1746748521539,0.9096644,103170.0,103160.0,0.64024018]
[1746748521939,0.9096644,103170.0,103160.0,0.74862117]
[1746748521940,0.5739,103170.0,103160.0,0.74862117]
[1746748522145,0.5041,103170.0,103160.0,0.74862117]
[1746748523143,0.49500912,103170.0,103160.0,0.7557458]
[1746748523542,0.14,103170.0,103160.0,1.2965458]
[1746748523742,0.14,103170.0,103160.0,0.86736481]
[1746748523939,0.13515138,103170.0,103160.0,0.86736481]
[1746748524145,0.13515138,103170.0,103160.0,0.79622315]
[1746748524448,0.32901578,103170.0,103160.0,0.6478398]
[1746748524642,0.39014334,103170.0,103160.0,0.6478398]
[1746748524840,0.75094334,103170.0,103160.0,0.6478398]
[1746748525140,0.81924334,103170.0,103160.0,0.3532766]
[1746748525339,0.88934334,103170.0,103160.0,0.5805998]
[1746748525546,0.99772433,103170.0,103160.0,0.3867166]
[1746748525745,0.88934334,103170.0,103160.0,0.5805998]
[1746748526147,0.99772433,103170.0,103160.0,0.58060192]
[1746748526340,0.99772433,103170.0,103160.0,0.5712689]
[1746748526546,0.88934334,103170.0,103160.0,0.64909955]
[1746748526745,0.99772433,103170.0,103160.0,0.64909955]
[1746748527449,0.88934334,103170.0,103160.0,0.64909955]
[1746748528542,0.99772433,103170.0,103160.0,0.64016892]
[1746748528742,0.88934334,103170.0,103160.0,0.64933999]
[1746748528949,0.88934334,103170.0,103160.0,0.64933894]
[1746748529453,0.88934334,103170.0,103160.0,0.6493389]
[1746748529650,0.99772433,103170.0,103160.0,0.6493389]
[1746748530052,0.99772433,103170.0,103160.0,0.5804389]
[1746748531156,0.88934334,103170.0,103160.0,0.5804389]
[1746748531652,0.99772433,103170.0,103160.0,0.58079368]
[1746748531861,1.10610532,103170.0,103160.0,0.21117048]
[1746748532156,1.10822638,103170.0,103160.0,0.04317048]
[1746748532557,0.193902,103150.0,103140.0,0.00290867]
[1746748532755,1.15388299,103150.0,103140.0,0.00290867]
[1746748532955,1.35258299,103150.0,103140.0,0.19682947]
[1746748533153,1.244202,103150.0,103140.0,0.19682947]
[1746748533352,1.35258299,103150.0,103140.0,0.19682947]
[1746748533953,1.35358299,103150.0,103140.0,0.19682947]
[1746748534154,1.35358299,103150.0,103140.0,0.36482947]
[1746748534349,1.35358299,103150.0,103140.0,0.36882947]
[1746748534958,1.255202,103150.0,103140.0,0.36882947]
[1746748535160,1.255202,103150.0,103140.0,0.57392947]
[1746748535460,1.255202,103150.0,103140.0,0.58132298]
[1746748538459,0.9279,103150.0,103140.0,0.68970397]
[1746748538650,0.55527866,103150.0,103140.0,0.68970397]
[1746748539255,0.5436098,103150.0,103140.0,0.68970397]
[1746748540167,0.53391099,103150.0,103140.0,0.68970397]
[1746748540366,0.53391099,103150.0,103140.0,0.58132298]
[1746748541059,0.72781299,103150.0,103140.0,0.58132298]
[1746748541759,0.72781299,103150.0,103140.0,0.68584298]
[1746748541960,1.26809398,103150.0,103140.0,0.61544298]
[1746748542267,1.15971299,103150.0,103140.0,0.61544298]
[1746748542469,1.26809398,103150.0,103140.0,0.61544298]
[1746748542667,1.15971299,103150.0,103140.0,0.61544298]
[1746748542856,1.16213299,103150.0,103140.0,0.61544298]
[1746748543460,0.80133299,103150.0,103140.0,0.61544298]
[1746748543656,0.53633099,103150.0,103140.0,0.69092298]
[1746748543861,0.73023299,103150.0,103140.0,0.61544298]
[1746748544061,0.73023299,103150.0,103140.0,0.72382397]
[1746748544257,0.14342,103150.0,103140.0,1.22462397]
[1746748544470,0.14342,103150.0,103140.0,1.09208736]
[1746748544671,0.14342,103150.0,103140.0,0.89128736]
[1746748544863,0.14342,103150.0,103140.0,0.90128736]
[1746748545063,0.50422,103150.0,103140.0,0.91644115]
[1746748545264,0.50422,103150.0,103140.0,0.63826135]
[1746748545470,0.71582,103150.0,103140.0,0.82826135]
[1746748545670,0.909722,103150.0,103140.0,0.63818135]
[1746748545871,0.71582,103150.0,103140.0,0.81818135]
[1746748547870,0.71582,103150.0,103140.0,0.92656234]
[1746748548067,0.71582,103150.0,103140.0,0.91909776]
[1746748548267,0.71582,103150.0,103140.0,0.81818274]
[1746748548471,0.71582,103150.0,103140.0,0.92656373]
[1746748549078,0.71582,103150.0,103140.0,0.81818274]
[1746748550177,0.71582,103150.0,103140.0,0.81813611]
[1746748551178,0.50422,103150.0,103140.0,0.7465171]
[1746748551367,0.14342,103150.0,103140.0,0.92743941]
[1746748551571,0.50422,103150.0,103140.0,0.92743941]
[1746748551780,0.50422,103150.0,103140.0,0.92751514]
[1746748552075,0.14342,103150.0,103140.0,0.9275185]
[1746748553880,0.1366006,103150.0,103140.0,1.76667313]
[1746748554075,0.12932663,103150.0,103140.0,1.65829214]
[1746748554380,0.1244775,103150.0,103140.0,1.64737704]
[1746748555873,0.1244775,103150.0,103140.0,1.85271003]
[1746748556178,0.0769509,103150.0,103140.0,2.14933857]
[1746748556878,0.6562,103170.0,103160.0,0.1938832]
[1746748557180,0.5062,103170.0,103160.0,0.49289726]
[1746748557379,0.5062,103170.0,103160.0,0.63169726]
[1746748557980,0.5102,103170.0,103160.0,0.63169726]
[1746748558174,0.7040644,103170.0,103160.0,0.52331627]
[1746748558375,0.5808,103170.0,103160.0,0.52331627]
[1746748559080,0.5798,103170.0,103160.0,0.52331627]
[1746748559475,0.5798,103170.0,103160.0,0.52431627]
[1746748560278,0.7736644,103170.0,103160.0,0.52431627]
[1746748560483,0.5798,103170.0,103160.0,0.52431627]
[1746748560686,0.5798,103170.0,103160.0,0.52419994]
[1746748561472,0.00342,103180.0,103170.0,0.1938644]
[1746748561676,0.00342,103180.0,103170.0,1.70074933]
[1746748561677,0.13342,103180.0,103170.0,1.70074933]
[1746748561978,0.13342,103180.0,103170.0,3.09244801]
[1746748562178,0.13342,103180.0,103170.0,3.26044801]
[1746748562384,0.13342,103180.0,103170.0,3.26044802]
[1746748562571,0.13342,103180.0,103170.0,1.57128082]
[1746748562777,0.13842,103180.0,103170.0,1.78454132]
[1746748562983,0.13842,103180.0,103170.0,1.78455976]
[1746748563186,0.13842,103180.0,103170.0,1.76980696]
[1746748563684,0.13842,103180.0,103170.0,1.76978532]
[1746748564483,0.13542,103180.0,103170.0,1.76978532]
[1746748564685,0.13542,103180.0,103170.0,1.76957092]
[1746748565382,0.13542,103180.0,103170.0,1.96635946]
[1746748565581,0.13542,103180.0,103170.0,1.85797847]
[1746748565785,0.20122,103180.0,103170.0,1.47587946]
[1746748566284,0.20122,103180.0,103170.0,1.65587946]
[1746748566481,0.27162,103180.0,103170.0,1.64881443]
[1746748566687,0.27162,103180.0,103170.0,1.54043344]
[1746748566884,0.20122,103180.0,103170.0,1.64881443]
[1746748567090,0.27162,103180.0,103170.0,1.54043344]
[1746748567387,0.27162,103180.0,103170.0,1.64881443]
[1746748567989,0.27162,103180.0,103170.0,1.54043344]
[1746748568184,0.27162,103180.0,103170.0,1.64881443]
[1746748568380,0.27162,103180.0,103170.0,1.45871391]
[1746748570092,0.27162,103180.0,103170.0,1.35033292]
[1746748570485,0.27162,103180.0,103170.0,1.45871391]
[1746748571186,0.27162,103180.0,103170.0,1.25543391]
[1746748571392,0.27162,103180.0,103170.0,1.45863391]
[1746748572288,0.13542,103180.0,103170.0,1.5670149]
[1746748572487,0.13542,103180.0,103170.0,1.9470149]
[1746748572688,0.3003,103200.0,103190.0,0.1938269]
[1746748572891,0.1029443,103200.0,103190.0,1.3088769]
[1746748573089,0.001,103210.0,103200.0,0.1938081]
[1746748573286,0.121,103210.0,103200.0,3.2796541]
[1746748573781,0.121,103210.0,103200.0,3.28694504]
[1746748574093,0.122,103210.0,103200.0,3.45494504]
[1746748574687,0.121,103210.0,103200.0,3.45594504]
[1746748574889,0.121,103210.0,103200.0,3.45794504]
[1746748575198,0.121,103210.0,103200.0,3.25454504]
[1746748575389,0.001,103210.0,103200.0,1.39246805]
[1746748575588,0.1888,103210.0,103200.0,0.98926805]
[1746748575788,0.56007029,103210.0,103200.0,0.47978706]
[1746748575995,0.8813893,103210.0,103200.0,0.47978706]
[1746748576790,0.8813893,103210.0,103200.0,0.37885499]
[1746748576995,0.8813893,103210.0,103200.0,0.47985499]
[1746748577191,0.8813893,103210.0,103200.0,0.47785499]
[1746748577690,0.6876,103210.0,103200.0,0.48523598]
[1746748577890,0.6876,103210.0,103200.0,0.72103579]
[1746748578092,0.6876,103210.0,103200.0,0.95163579]
[1746748578293,0.2589,103210.0,103200.0,1.25901678]
[1746748578493,0.1898,103210.0,103200.0,1.51143608]
[1746748578694,0.2555,103210.0,103200.0,1.15063608]
[1746748578993,0.2565,103210.0,103200.0,1.51173222]
[1746748579394,0.121,103210.0,103200.0,1.51273222]
[1746748580403,0.121,103210.0,103200.0,1.51473222]
[1746748581092,0.121,103210.0,103200.0,1.25514102]
[1746748581293,0.121,103210.0,103200.0,1.62335384]
[1746748581492,0.121,103210.0,103200.0,1.92024984]
[1746748581692,0.121,103210.0,103200.0,1.92021416]
[1746748583105,0.121,103210.0,103200.0,1.71493717]
[1746748583298,0.5018,103210.0,103200.0,0.68683618]
[1746748583605,0.712,103210.0,103200.0,0.96783618]
[1746748584701,0.3512,103210.0,103200.0,0.96783618]
[1746748584902,0.3512,103210.0,103200.0,0.96483618]
[1746748585106,0.3522,103210.0,103200.0,0.96483618]
[1746748586005,0.3522,103210.0,103200.0,1.06584003]
[1746748586306,0.3522,103210.0,103200.0,1.0729512]
[1746748587105,0.2101,103210.0,103200.0,1.4337512]
[1746748587500,0.2091,103210.0,103200.0,1.67533296]
[1746748587703,0.2091,103210.0,103200.0,1.89533296]
[1746748588402,0.2091,103210.0,103200.0,1.78695197]
[1746748588607,0.2091,103210.0,103200.0,1.93437166]
[1746748589102,0.141,103210.0,103200.0,1.93437166]
[1746748589296,0.13418509,103210.0,103200.0,1.94526455]
[1746748589496,0.12691586,103210.0,103200.0,2.06846941]
[1746748590109,0.12691586,103210.0,103200.0,2.16536541]
[1746748590901,0.12691586,103210.0,103200.0,2.15496525]
[1746748591106,0.12691586,103210.0,103200.0,3.65103594]
[1746748591411,0.12691586,103210.0,103200.0,3.64014138]
[1746748591911,0.12691586,103210.0,103200.0,4.06288599]
[1746748592310,0.14452,103220.0,103210.0,0.1937893]
[1746748592508,0.18452,103220.0,103210.0,0.98477496]
[1746748592903,0.18452,103220.0,103210.0,1.34557496]
[1746748593205,0.18452,103220.0,103210.0,1.51357496]
[1746748593600,0.18552,103220.0,103210.0,1.15277496]
[1746748594011,0.18552,103220.0,103210.0,1.51357496]
[1746748594205,0.18552,103220.0,103210.0,1.15277496]
[1746748594619,0.18552,103220.0,103210.0,1.51357496]
[1746748594813,0.18552,103220.0,103210.0,1.15277496]
[1746748595110,0.18552,103220.0,103210.0,1.16753587]
[1746748596304,0.18552,103220.0,103210.0,1.15277496]
[1746748596811,0.18552,103220.0,103210.0,1.51357496]
[1746748597209,0.18552,103220.0,103210.0,1.66077591]
[1746748597811,0.18552,103220.0,103210.0,1.55239492]
[1746748598011,0.18552,103220.0,103210.0,1.66077591]
[1746748598913,0.18552,103220.0,103210.0,1.66055774]
[1746748599213,0.11372,103220.0,103210.0,1.66055774]
[1746748600715,0.11372,103220.0,103210.0,1.85681358]
[1746748600923,0.11372,103220.0,103210.0,1.85881358]
[1746748601215,0.11272,103220.0,103210.0,1.85981358]
[1746748601416,0.18122,103220.0,103210.0,1.85981358]
[1746748601718,0.93417149,103220.0,103210.0,0.52204329]
[1746748601918,0.95417149,103220.0,103210.0,0.81515259]
[1746748602209,0.95417149,103220.0,103210.0,0.71583259]
[1746748602412,0.95417149,103220.0,103210.0,0.81511259]
[1746748603410,0.95417149,103220.0,103210.0,0.81483259]
[1746748603812,0.95417149,103220.0,103210.0,0.71545304]
[1746748604212,0.95417149,103220.0,103210.0,0.7154527]
[1746748604619,0.8457905,103220.0,103210.0,0.37199591]
[1746748605217,0.8457905,103220.0,103210.0,0.37099591]
[1746748605405,0.8467905,103220.0,103210.0,0.37099591]
[1746748606111,0.8443705,103220.0,103210.0,0.37099591]
[1746748606412,0.8443705,103220.0,103210.0,0.44199591]